fUSD/lending_fUSD_20250705
["ID","MTS","AMOUNT","RATE_DAILY","PERIOD"]
[369649342,1751675442260,-500.0,0.00021375,7]
[369649343,1751675442269,-169.03,0.00021375,7]
[369649344,1751675442278,-500.0,0.00021375,7]
[369649345,1751675442288,-1794.11,0.000214,2]
[369649346,1751675442297,-1794.11,0.000214,2]
[369649347,1751675442306,-897.06,0.000214,2]
[369649348,1751675442315,-897.06,0.000214,2]
[369649349,1751675442324,-9003.27646546,0.00021402,2]
[369649350,1751675442334,-1418.0,0.00021405,2]
[369649351,1751675442343,-1418.0,0.00021463,2]
[369649352,1751675442352,-1794.11,0.000215,2]
[369649353,1751675442362,-897.06,0.000215,2]
[369649354,1751675442371,-2389.5595912,0.00021521,5]
[369649355,1751675442380,-6869.77104924,0.00021534,2]
[369649356,1751675442390,-500.0,0.00021568,2]
[369649357,1751675442399,-1500.0,0.00021568,2]
[369649358,1751675442409,-516.0,0.00021575,5]
[369649359,1751675442418,-300.0,0.00021584,2]
[369649360,1751675442428,-190.16852519,0.000217,2]
[369649361,1751675442437,-190.16852511,0.000217,2]
[369649362,1751675442447,-190.16852511,0.000217,2]
[369649363,1751675442456,-190.16852511,0.000217,2]
[369649364,1751675442466,-190.16852511,0.000217,2]
[369649365,1751675442475,-190.16852511,0.000217,2]
[369649366,1751675442484,-190.16852511,0.000217,2]
[369649367,1751675442493,-190.16852511,0.000217,2]
[369649368,1751675442503,-190.16852511,0.000217,2]
[369649369,1751675442512,-190.16852511,0.000217,2]
[369649370,1751675442522,-190.16852511,0.000217,2]
[369649371,1751675442531,-190.16852511,0.000217,2]
[369649378,1751675442747,-1418.0,0.00021748,2]
[369649379,1751675442757,-190.16852511,0.00021795,2]
[369649380,1751675442766,-693.3919763,0.00021857,2]
[369649381,1751675442775,-215.0738,0.00021857,2]
[369649382,1751675442786,-311.1,0.00021857,2]
[369649383,1751675442796,-160.0,0.00021857,2]
[369649384,1751675442805,-2009.63282,0.0002186,2]
[369649385,1751675442816,-9003.27646546,0.00021882,2]
[369649387,1751675442826,-168.0,0.00021892,2]
[369649389,1751675442837,-1000.0,0.000219,7]
[369649390,1751675442848,-190.16852511,0.00021907,2]
[369649391,1751675442858,-1681.0,0.0002191,2]
[369649392,1751675442867,-887.0,0.0002191,2]
[369649393,1751675442878,-1163.0,0.0002191,2]
[369649394,1751675442889,-949.0,0.0002191,2]
[369649395,1751675442899,-3342.0,0.0002191,2]
[369649396,1751675442910,-156.0,0.0002191,2]
[369649397,1751675442920,-754.0,0.0002191,2]
[369649398,1751675442930,-5000.0,0.00021918,2]
[369649399,1751675442940,-1934.002,0.0002192,2]
[369649400,1751675442949,-372.0,0.0002192,2]
[369649401,1751675442959,-627.002624,0.00021927,4]
[369649402,1751675442968,-150.0,0.0002193,2]
[369649403,1751675442978,-6869.77104924,0.00021994,2]
[369649404,1751675442987,-500.0,0.00022,7]
[369649405,1751675442997,-3001.57,0.00022,2]
[369649406,1751675443006,-190.16852511,0.0002202,2]
[369649407,1751675443015,-500.0,0.00022042,2]
[369649408,1751675443024,-2342.9318,0.00022042,2]
[369649409,1751675443033,-200.0,0.00022051,2]
[369649410,1751675443043,-350.0,0.00022061,2]
[369649411,1751675443052,-581.61293,0.00022069,7]
[369649412,1751675443061,-581.61293,0.00022069,7]
[369649413,1751675443070,-210.26882792,0.00022069,7]
[369649414,1751675443079,-926.0,0.00022079,2]
[369649415,1751675443088,-259.56365994,0.00022083,2]
[369649416,1751675443098,-151.0,0.00022083,2]
[369649417,1751675443107,-150.0,0.00022111,2]
[369649418,1751675443116,-150.0,0.00022112,2]
[369649419,1751675443125,-600.0,0.00022115,2]
[369649420,1751675443134,-600.0,0.00022115,2]
[369649421,1751675443144,-600.0,0.00022115,2]
[369649422,1751675443153,-600.0,0.00022115,2]
[369649423,1751675443162,-600.0,0.00022115,2]
[369649424,1751675443171,-2000.0,0.00022116,2]
[369649425,1751675443180,-150.0,0.00022122,2]
[369649426,1751675443190,-605.60263988,0.00022123,2]
[369649427,1751675443199,-150.0,0.00022125,2]
[369649428,1751675443208,-150.0,0.00022126,2]
[369649430,1751675443217,-185.66583501,0.00022126,2]
[369649432,1751675443227,-5000.0,0.00022126,2]
[369649433,1751675443236,-13056.9520783,0.0002213,2]
[369649434,1751675443245,-300.0,0.00022132,2]
[369649435,1751675443255,-190.16852511,0.00022132,2]
[369649436,1751675443264,-150.0,0.00022135,2]
[369649437,1751675443273,-150.0,0.00022138,2]
[369649438,1751675443283,-150.0,0.00022138,2]
[369649439,1751675443292,-150.0,0.0002214,2]
[369649440,1751675443301,-2389.5595912,0.00022141,6]
[369649441,1751675443310,-150.0,0.00022149,2]
[369649442,1751675443320,-150.0,0.0002216,2]
[369649443,1751675443329,-1000.0,0.00022163,2]
[369649444,1751675443338,-150.0,0.00022167,2]
[369649445,1751675443348,-150.0,0.00022168,2]
[369649446,1751675443358,-150.0,0.00022172,2]
[369649447,1751675443367,-150.0,0.00022175,2]
[369649448,1751675443376,-150.0,0.00022175,2]
[369649449,1751675443386,-150.0,0.00022178,2]
[369649450,1751675443395,-1000.0,0.0002218,2]
[369649451,1751675443405,-150.0,0.00022183,2]
[369649452,1751675443414,-150.0,0.00022187,2]
[369649453,1751675443423,-150.0,0.0002219,2]
[369649454,1751675443433,-150.0,0.0002219,2]
[369649455,1751675443442,-441.0,0.00022192,7]
[369649456,1751675443452,-150.0,0.00022192,2]
[369649457,1751675443461,-150.0,0.00022196,2]
[369649458,1751675443471,-150.0,0.00022199,2]
[369649459,1751675443480,-150.0,0.00022199,2]
[369649461,1751675443490,-150.0,0.000222,2]
[369649463,1751675443499,-1000.0,0.00022201,2]
[369649465,1751675443508,-150.0,0.00022204,2]
[369649467,1751675443518,-150.0,0.00022205,2]
[369649469,1751675443528,-150.0,0.00022208,2]
[369649470,1751675443537,-150.0,0.00022214,2]
[369649471,1751675443547,-150.0,0.00022216,2]
[369649472,1751675443556,-150.0,0.00022217,2]
[369649473,1751675443565,-150.0,0.00022219,2]
[369649474,1751675443575,-150.0,0.00022219,2]
[369649475,1751675443588,-150.0,0.00022222,2]
[369649476,1751675443598,-150.0,0.00022224,2]
[369649477,1751675443607,-300.0,0.00022225,2]
[369649478,1751675443617,-500.0,0.00022226,2]
[369649479,1751675443626,-500.0,0.00022226,2]
[369649480,1751675443636,-500.0,0.00022226,2]
[369649481,1751675443644,-500.0,0.00022226,2]
[369649482,1751675443654,-500.0,0.00022226,2]
[369649483,1751675443665,-500.0,0.00022226,2]
[369649484,1751675443674,-500.0,0.00022226,2]
[369649485,1751675443683,-500.0,0.00022226,2]
[369649486,1751675443693,-500.0,0.00022226,2]
[369649487,1751675443702,-500.0,0.00022226,2]
[369649488,1751675443712,-500.0,0.00022226,2]
[369649489,1751675443721,-500.0,0.00022226,2]
[369649490,1751675443730,-500.0,0.00022226,2]
[369649491,1751675443740,-500.0,0.00022226,2]
[369649492,1751675443749,-500.0,0.00022226,2]
[369649493,1751675443759,-500.0,0.00022226,2]
[369649494,1751675443768,-500.0,0.00022226,2]
[369649495,1751675443778,-500.0,0.00022226,2]
[369649496,1751675443787,-500.0,0.00022226,2]
[369649497,1751675443796,-500.0,0.00022226,2]
[369649498,1751675443807,-500.0,0.00022226,2]
[369649499,1751675443816,-500.0,0.00022226,2]
[369649500,1751675443826,-500.0,0.00022226,2]
[369649501,1751675443835,-500.0,0.00022226,2]
[369649502,1751675443844,-500.0,0.00022226,2]
[369649503,1751675443854,-500.0,0.00022226,2]
[369649504,1751675443863,-500.0,0.00022226,2]
[369649505,1751675443873,-500.0,0.00022226,2]
[369649506,1751675443883,-500.0,0.00022226,2]
[369649507,1751675443893,-500.0,0.00022226,2]
[369649508,1751675443902,-500.0,0.00022226,2]
[369649509,1751675443911,-500.0,0.00022226,2]
[369649510,1751675443921,-500.0,0.00022226,2]
[369649511,1751675443931,-500.0,0.00022226,2]
[369649512,1751675443940,-500.0,0.00022226,2]
[369649513,1751675443950,-500.0,0.00022226,2]
[369649514,1751675443959,-500.0,0.00022226,2]
[369649515,1751675443968,-500.0,0.00022226,2]
[369649516,1751675443977,-500.0,0.00022226,2]
[369649517,1751675443986,-500.0,0.00022226,2]
[369649518,1751675443995,-500.0,0.00022226,2]
[369649519,1751675444004,-500.0,0.00022226,2]
[369649520,1751675444013,-500.0,0.00022226,2]
[369649521,1751675444022,-500.0,0.00022226,2]
[369649522,1751675444031,-500.0,0.00022226,2]
[369649523,1751675444040,-500.0,0.00022226,2]
[369649524,1751675444049,-500.0,0.00022226,2]
[369649525,1751675444059,-500.0,0.00022226,2]
[369649526,1751675444068,-500.0,0.00022226,2]
[369649527,1751675444078,-500.0,0.00022226,2]
[369649528,1751675444087,-500.0,0.00022226,2]
[369649529,1751675444096,-500.0,0.00022226,2]
[369649530,1751675444105,-500.0,0.00022226,2]
[369649531,1751675444115,-500.0,0.00022226,2]
[369649532,1751675444124,-500.0,0.00022226,2]
[369649533,1751675444135,-500.0,0.00022226,2]
[369649534,1751675444144,-500.0,0.00022226,2]
[369649535,1751675444154,-500.0,0.00022226,2]
[369649536,1751675444164,-500.0,0.00022226,2]
[369649537,1751675444174,-500.0,0.00022226,2]
[369649538,1751675444184,-500.0,0.00022226,2]
[369649539,1751675444193,-500.0,0.00022226,2]
[369649540,1751675444202,-500.0,0.00022226,2]
[369649541,1751675444211,-500.0,0.00022226,2]
[369649542,1751675444221,-500.0,0.00022226,2]
[369649543,1751675444230,-500.0,0.00022226,2]
[369649544,1751675444239,-500.0,0.00022226,2]
[369649545,1751675444249,-500.0,0.00022226,2]
[369649546,1751675444259,-500.0,0.00022226,2]
[369649547,1751675444268,-500.0,0.00022226,2]
[369649548,1751675444278,-500.0,0.00022226,2]
[369649549,1751675444287,-500.0,0.00022226,2]
[369649550,1751675444296,-500.0,0.00022226,2]
[369649551,1751675444306,-500.0,0.00022226,2]
[369649552,1751675444315,-500.0,0.00022226,2]
[369649553,1751675444325,-500.0,0.00022226,2]
[369649554,1751675444334,-500.0,0.00022226,2]
[369649555,1751675444344,-500.0,0.00022226,2]
[369649556,1751675444353,-500.0,0.00022226,2]
[369649557,1751675444364,-500.0,0.00022226,2]
[369649558,1751675444375,-500.0,0.00022226,2]
[369649559,1751675444385,-500.0,0.00022226,2]
[369649560,1751675444394,-500.0,0.00022226,2]
[369649561,1751675444404,-500.0,0.00022226,2]
[369649562,1751675444413,-500.0,0.00022226,2]
[369649563,1751675444423,-500.0,0.00022226,2]
[369649564,1751675444433,-500.0,0.00022226,2]
[369649565,1751675444442,-500.0,0.00022226,2]
[369649566,1751675444452,-500.0,0.00022226,2]
[369649567,1751675444461,-500.0,0.00022226,2]
[369649568,1751675444471,-500.0,0.00022226,2]
[369649569,1751675444481,-500.0,0.00022226,2]
[369649570,1751675444491,-500.0,0.00022226,2]
[369649571,1751675444500,-500.0,0.00022226,2]
[369649572,1751675444510,-500.0,0.00022226,2]
[369649573,1751675444519,-500.0,0.00022226,2]
[369649574,1751675444529,-500.0,0.00022226,2]
[369649575,1751675444539,-500.0,0.00022226,2]
[369649576,1751675444549,-500.0,0.00022226,2]
[369649577,1751675444558,-500.0,0.00022226,2]
[369649578,1751675444567,-500.0,0.00022226,2]
[369649579,1751675444576,-500.0,0.00022226,2]
[369649580,1751675444589,-500.0,0.00022226,2]
[369649581,1751675444596,-500.0,0.00022226,2]
[369649582,1751675444604,-500.0,0.00022226,2]
[369649583,1751675444611,-500.0,0.00022226,2]
[369649584,1751675444621,-500.0,0.00022226,2]
[369649585,1751675444631,-500.0,0.00022226,2]
[369649586,1751675444640,-500.0,0.00022226,2]
[369649587,1751675444651,-500.0,0.00022226,2]
[369649588,1751675444660,-500.0,0.00022226,2]
[369649589,1751675444671,-500.0,0.00022226,2]
[369649590,1751675444680,-500.0,0.00022226,2]
[369649591,1751675444690,-500.0,0.00022226,2]
[369649592,1751675444699,-500.0,0.00022226,2]
[369649593,1751675444708,-500.0,0.00022226,2]
[369649594,1751675444718,-500.0,0.00022226,2]
[369649595,1751675444727,-500.0,0.00022226,2]
[369649596,1751675444737,-500.0,0.00022226,2]
[369649597,1751675444747,-500.0,0.00022226,2]
[369649598,1751675444756,-500.0,0.00022226,2]
[369649599,1751675444766,-500.0,0.00022226,2]
[369649600,1751675444775,-500.0,0.00022226,2]
[369649601,1751675444785,-500.0,0.00022226,2]
[369649602,1751675444794,-500.0,0.00022226,2]
[369649603,1751675444803,-500.0,0.00022226,2]
[369649604,1751675444813,-500.0,0.00022226,2]
[369649605,1751675444822,-500.0,0.00022226,2]
[369649606,1751675444831,-500.0,0.00022226,2]
[369649607,1751675444841,-500.0,0.00022226,2]
[369649608,1751675444851,-500.0,0.00022226,2]
[369649609,1751675444861,-500.0,0.00022226,2]
[369649610,1751675444870,-500.0,0.00022226,2]
[369649611,1751675444880,-500.0,0.00022226,2]
[369649612,1751675444889,-500.0,0.00022226,2]
[369649613,1751675444898,-500.0,0.00022226,2]
[369649614,1751675444909,-500.0,0.00022226,2]
[369649615,1751675444918,-500.0,0.00022226,2]
[369649616,1751675444928,-500.0,0.00022226,2]
[369649617,1751675444937,-500.0,0.00022226,2]
[369649618,1751675444946,-500.0,0.00022226,2]
[369649619,1751675444955,-500.0,0.00022226,2]
[369649620,1751675444965,-500.0,0.00022226,2]
[369649621,1751675444975,-500.0,0.00022226,2]
[369649622,1751675444984,-500.0,0.00022226,2]
[369649623,1751675444993,-500.0,0.00022226,2]
[369649624,1751675445002,-500.0,0.00022226,2]
[369649625,1751675445011,-500.0,0.00022226,2]
[369649626,1751675445022,-500.0,0.00022226,2]
[369649627,1751675445031,-500.0,0.00022226,2]
[369649628,1751675445044,-500.0,0.00022226,2]
[369649629,1751675445053,-500.0,0.00022226,2]
[369649630,1751675445064,-500.0,0.00022226,2]
[369649631,1751675445074,-500.0,0.00022226,2]
[369649632,1751675445084,-500.0,0.00022226,2]
[369649633,1751675445094,-500.0,0.00022226,2]
[369649634,1751675445106,-500.0,0.00022226,2]
[369649635,1751675445116,-500.0,0.00022226,2]
[369649636,1751675445130,-500.0,0.00022226,2]
[369649637,1751675445142,-500.0,0.00022226,2]
[369649638,1751675445154,-500.0,0.00022226,2]
[369649639,1751675445165,-500.0,0.00022226,2]
[369649640,1751675445175,-500.0,0.00022226,2]
[369649641,1751675445184,-500.0,0.00022226,2]
[369649642,1751675445194,-500.0,0.00022226,2]
[369649643,1751675445203,-500.0,0.00022226,2]
[369649644,1751675445213,-500.0,0.00022226,2]
[369649645,1751675445222,-500.0,0.00022226,2]
[369649646,1751675445232,-500.0,0.00022226,2]
[369649647,1751675445241,-500.0,0.00022226,2]
[369649648,1751675445251,-500.0,0.00022226,2]
[369649649,1751675445261,-500.0,0.00022226,2]
[369649650,1751675445271,-500.0,0.00022226,2]
[369649651,1751675445280,-500.0,0.00022226,2]
[369649652,1751675445289,-500.0,0.00022226,2]
[369649653,1751675445299,-500.0,0.00022226,2]
[369649654,1751675445308,-500.0,0.00022226,2]
[369649655,1751675445318,-500.0,0.00022226,2]
[369649656,1751675445327,-500.0,0.00022226,2]
[369649657,1751675445337,-500.0,0.00022226,2]
[369649658,1751675445346,-500.0,0.00022226,2]
[369649659,1751675445356,-500.0,0.00022226,2]
[369649660,1751675445365,-500.0,0.00022226,2]
[369649661,1751675445375,-500.0,0.00022226,2]
[369649662,1751675445385,-500.0,0.00022226,2]
[369649663,1751675445394,-500.0,0.00022226,2]
[369649664,1751675445403,-500.0,0.00022226,2]
[369649665,1751675445413,-500.0,0.00022226,2]
[369649666,1751675445423,-500.0,0.00022226,2]
[369649667,1751675445432,-500.0,0.00022226,2]
[369649668,1751675445442,-500.0,0.00022226,2]
[369649669,1751675445451,-500.0,0.00022226,2]
[369649670,1751675445461,-500.0,0.00022226,2]
[369649671,1751675445470,-500.0,0.00022226,2]
[369649672,1751675445479,-500.0,0.00022226,2]
[369649673,1751675445488,-500.0,0.00022226,2]
[369649674,1751675445497,-500.0,0.00022226,2]
[369649675,1751675445507,-150.0,0.00022226,2]
[369649676,1751675445516,-150.0,0.00022226,2]
[369649677,1751675445526,-500.0,0.00022227,8]
[369649678,1751675445536,-500.0,0.00022227,8]
[369649679,1751675445545,-500.0,0.00022227,8]
[369649680,1751675445554,-500.0,0.00022227,8]
[369649681,1751675445563,-500.0,0.00022227,8]
[369649682,1751675445572,-500.0,0.00022227,8]
[369649683,1751675445583,-500.0,0.00022227,8]
[369649684,1751675445593,-500.0,0.00022227,8]
[369649685,1751675445605,-500.0,0.00022227,8]
[369649686,1751675445616,-500.0,0.00022227,8]
[369649687,1751675445625,-150.0,0.00022231,2]
[369649688,1751675445635,-190.16852511,0.00022245,2]
[369649689,1751675445645,-1005.0,0.00022246,2]
[369649690,1751675445655,-1000.0,0.00022246,2]
[369649691,1751675445665,-150.0,0.00022246,2]
[369649692,1751675445676,-150.0,0.00022247,2]
[369649694,1751675445686,-150.0,0.00022247,2]
[369649696,1751675445695,-150.0,0.00022249,2]
[369649697,1751675445704,-300.0,0.00022254,2]
[369649698,1751675445949,-150.0,0.00022255,2]
[369649699,1751675445959,-150.0,0.00022257,2]
[369649700,1751675445968,-150.0,0.00022257,2]
[369649701,1751675445977,-150.0,0.0002226,2]
[369649702,1751675445987,-150.0,0.00022261,2]
[369649703,1751675445996,-150.0,0.00022261,2]
[369649704,1751675446005,-666.0,0.00022261,2]
[369649705,1751675446015,-168.0,0.00022262,2]
[369649706,1751675446024,-176.68398,0.00022262,7]
[369649707,1751675446034,-151.0,0.00022262,7]
[369649708,1751675446043,-151.0,0.00022262,7]
[369649709,1751675446052,-151.0,0.00022262,7]
[369649710,1751675446061,-151.0,0.00022262,7]
[369649711,1751675446071,-151.0,0.00022262,7]
[369649712,1751675446081,-151.0,0.00022263,7]
[369649713,1751675446091,-151.0,0.00022263,7]
[369649714,1751675446100,-151.0,0.00022263,7]
[369649715,1751675446110,-151.0,0.00022263,7]
[369649716,1751675446120,-151.0,0.00022263,7]
[369649717,1751675446129,-151.0,0.00022263,7]
[369649718,1751675446139,-151.0,0.00022263,7]
[369649719,1751675446148,-155.356047,0.00022263,7]
[369649720,1751675446158,-151.0,0.00022263,7]
[369649721,1751675446167,-176.709846,0.00022263,7]
[369649722,1751675446177,-176.709846,0.00022263,7]
[369649723,1751675446186,-150.0,0.00022263,2]
[369649724,1751675446196,-500.0,0.00022263,2]
[369649725,1751675446205,-500.0,0.00022263,2]
[369649726,1751675446215,-500.0,0.00022263,2]
[369649727,1751675446224,-500.0,0.00022263,2]
[369649728,1751675446233,-500.0,0.00022263,2]
[369649729,1751675446242,-500.0,0.00022263,2]
[369649730,1751675446252,-500.0,0.00022263,2]
[369649731,1751675446261,-500.0,0.00022263,2]
[369649732,1751675446270,-500.0,0.00022263,2]
[369649733,1751675446279,-500.0,0.00022263,2]
[369649735,1751675446288,-500.0,0.00022263,2]
[369649737,1751675446298,-500.0,0.00022263,2]
[369649739,1751675446308,-500.0,0.00022263,2]
[369649741,1751675446317,-500.0,0.00022263,2]
[369649743,1751675446327,-500.0,0.00022263,2]
[369649745,1751675446336,-500.0,0.00022263,2]
[369649748,1751675446346,-500.0,0.00022263,2]
[369649750,1751675446356,-500.0,0.00022263,2]
[369649752,1751675446365,-500.0,0.00022263,2]
[369649754,1751675446375,-500.0,0.00022263,2]
[369649756,1751675446384,-500.0,0.00022263,2]
[369649758,1751675446394,-500.0,0.00022263,2]
[369649759,1751675446404,-500.0,0.00022263,2]
[369649760,1751675446413,-500.0,0.00022263,2]
[369649761,1751675446423,-500.0,0.00022263,2]
[369649762,1751675446433,-500.0,0.00022263,2]
[369649763,1751675446442,-500.0,0.00022263,2]
[369649764,1751675446452,-500.0,0.00022263,2]
[369649765,1751675446461,-500.0,0.00022263,2]
[369649766,1751675446471,-500.0,0.00022263,2]
[369649767,1751675446480,-500.0,0.00022263,2]
[369649768,1751675446490,-500.0,0.00022263,2]
[369649769,1751675446499,-500.0,0.00022263,2]
[369649770,1751675446509,-500.0,0.00022263,2]
[369649771,1751675446518,-500.0,0.00022263,2]
[369649772,1751675446528,-500.0,0.00022263,2]
[369649773,1751675446537,-500.0,0.00022263,2]
[369649774,1751675446547,-500.0,0.00022263,2]
[369649775,1751675446558,-500.0,0.00022263,2]
[369649776,1751675446567,-500.0,0.00022263,2]
[369649777,1751675446576,-500.0,0.00022263,2]
[369649778,1751675446588,-500.0,0.00022263,2]
[369649779,1751675446597,-500.0,0.00022263,2]
[369649780,1751675446607,-500.0,0.00022263,2]
[369649781,1751675446616,-500.0,0.00022263,2]
[369649782,1751675446630,-500.0,0.00022263,2]
[369649783,1751675446640,-500.0,0.00022263,2]
[369649784,1751675446649,-500.0,0.00022263,2]
[369649785,1751675446659,-500.0,0.00022263,2]
[369649786,1751675446669,-500.0,0.00022263,2]
[369649787,1751675446679,-500.0,0.00022263,2]
[369649788,1751675446688,-500.0,0.00022263,2]
[369649789,1751675446698,-500.0,0.00022263,2]
[369649790,1751675446707,-500.0,0.00022263,2]
[369649791,1751675446717,-500.0,0.00022263,2]
[369649792,1751675446727,-500.0,0.00022263,2]
[369649793,1751675446736,-500.0,0.00022263,2]
[369649794,1751675446745,-269.7197,0.00022263,2]
[369649795,1751675446755,-150.0,0.00022263,2]
[369649796,1751675446765,-150.0,0.00022266,2]
[369649797,1751675446774,-150.0,0.00022272,2]
[369649798,1751675446784,-500.0,0.00022273,2]
[369649799,1751675446794,-500.0,0.00022273,2]
[369649800,1751675446803,-500.0,0.00022273,2]
[369649801,1751675446814,-500.0,0.00022273,2]
[369649802,1751675446827,-500.0,0.00022273,2]
[369649803,1751675446838,-151.0,0.00022275,2]
[369649804,1751675446848,-150.0,0.00022276,2]
[369649805,1751675446858,-1000.0,0.00022278,2]
[369649806,1751675446867,-150.0,0.00022279,2]
[369649807,1751675446877,-150.0,0.00022282,2]
[369649808,1751675446887,-150.0,0.00022283,2]
[369649809,1751675446896,-600.0,0.00022285,2]
[369649810,1751675446906,-600.0,0.00022285,2]
[369649811,1751675446917,-600.0,0.00022285,2]
[369649812,1751675446928,-572.94061173,0.00022285,2]
[369649813,1751675446937,-150.0,0.00022289,2]
[369649814,1751675446947,-150.0,0.0002229,2]
[369649815,1751675446957,-169.7584506,0.00022293,2]
[369649816,1751675446966,-150.0,0.00022293,2]
[369649817,1751675446976,-150.0,0.00022293,2]
[369649818,1751675446987,-150.0,0.00022293,2]
[369649819,1751675446997,-557.0,0.00022293,2]
[369649820,1751675447008,-150.0,0.00022293,2]
[369649821,1751675447019,-150.0,0.00022293,2]
[369649822,1751675447029,-150.0,0.00022293,2]
[369649823,1751675447039,-709.0,0.00022293,2]
[369649824,1751675447049,-176.80364529,0.00022293,2]
[369649825,1751675447061,-150.0,0.00022293,2]
[369649826,1751675447071,-152.8309363,0.00022293,2]
[369649827,1751675447082,-500.0,0.00022293,2]
[369649828,1751675447092,-452.0,0.00022293,2]
[369649829,1751675447101,-150.0,0.00022293,2]
[369649830,1751675447111,-500.0,0.00022293,2]
[369649831,1751675447122,-150.0,0.00022293,2]
[369649832,1751675447132,-150.0,0.00022293,2]
[369649833,1751675447143,-151.40785155,0.00022293,2]
[369649834,1751675447154,-500.0,0.00022293,2]
[369649835,1751675447164,-150.0,0.00022293,2]
[369649836,1751675447173,-150.0,0.00022293,2]
[369649837,1751675447184,-203.16757203,0.00022293,2]
[369649838,1751675447195,-500.0,0.00022293,2]
[369649839,1751675447205,-500.0,0.00022293,2]
[369649840,1751675447216,-2071.0,0.00022293,2]
[369649841,1751675447226,-204.3178228,0.00022293,2]
[369649842,1751675447236,-150.0,0.00022293,2]
[369649843,1751675447247,-150.0,0.00022293,2]
[369649844,1751675447257,-150.0,0.00022293,2]
[369649845,1751675447267,-150.0,0.00022293,2]
[369649846,1751675447277,-150.0,0.00022293,2]
[369649847,1751675447286,-500.0,0.00022293,5]
[369649848,1751675447296,-500.0,0.00022293,2]
[369649849,1751675447306,-150.0,0.00022293,2]
[369649850,1751675447315,-500.0,0.00022293,2]
[369649851,1751675447326,-431.0,0.00022293,2]
[369649852,1751675447336,-1414.0,0.00022293,2]
[369649853,1751675447346,-500.0,0.00022293,2]
[369649854,1751675447356,-2419.0,0.00022293,2]
[369649855,1751675447367,-150.0,0.00022293,2]
[369649856,1751675447376,-150.0,0.00022293,2]
[369649857,1751675447386,-500.0,0.00022293,2]
[369649858,1751675447396,-150.0,0.00022293,2]
[369649859,1751675447405,-150.0,0.00022293,2]
[369649860,1751675447415,-150.0,0.00022293,2]
[369649861,1751675447425,-150.0,0.00022293,2]
[369649862,1751675447435,-150.0,0.00022293,2]
[369649863,1751675447445,-150.0,0.00022293,2]
[369649864,1751675447454,-1058.0,0.00022293,2]
[369649865,1751675447464,-1058.0,0.00022293,2]
[369649866,1751675447474,-150.0,0.00022293,2]
[369649867,1751675447484,-500.0,0.00022293,2]
[369649868,1751675447493,-150.0,0.00022293,2]
[369649869,1751675447503,-150.0,0.00022295,2]
[369649870,1751675447512,-150.0,0.00022297,2]
[369649871,1751675447522,-150.0,0.00022299,2]